Cogmind - Beta 13 @@@ ROGUE MODE // 2024.04.06 @ 02:43:19 Player: kucifra Result: Destroyed by G-50 Soldier with Heavy Laser Performance ------------- Evolutions (3) 1500 Regions Visited (6) 1200 Robots Destroyed (13) 65 Value Destroyed (660) 660 Prototype IDs (1) 20 Alien Tech Used (0) 0 Bonus (1898) 1898 TOTAL SCORE: 5343 Bonus ------- High Alert Combat Kills 327 Follower Combat Kills 1283 Aligned with FarCom 300 Friendly Fire -12 Cogmind --------- Core Integrity 0/700 Matter 114/300 Energy 540/540 System Corruption 0% Temperature Hot (219) Movement Treading (240) Ox1 Location -7/Factory Parts ------- > --- POWER (1) -------- Improved Deuterium Engine > --- PROPULSION (3) --- Medium Treads > --- UTILITY (7) ------ High-capacity Battery Hardened Medium Armor Plating > --- WEAPON (2) ------- Minigun Advanced Assault Cannon > --- INVENTORY (5) ---- (None) Peak State ------------ > --- POWER ------------ Micro Nuclear Core > --- PROPULSION ------- Light Treads Light Treads Armored Treads > --- UTILITY ---------- Large Storage Unit Army-in-a-Box > --- WEAPON ----------- Light Assault Rifle Light Assault Rifle > --- INVENTORY -------- Ion Engine Light Ion Engine Light Ion Engine Armored Treads Small Storage Unit Improved Sensor Array Terrain Scanner [Rating: 67] Favorites ----------- Power Light Ion Engine Engine Light Ion Engine Power Core Micro Nuclear Core Propulsion Light Treads Treads Light Treads Hover Unit Gravmag System Utility Small Storage Unit Device Army-in-a-Box Storage Small Storage Unit Protection Hardened Medium Armor Plating Weapon Light Assault Rifle Ballistic Gun Light Assault Rifle Ballistic Cannon Advanced Assault Cannon Special Melee Weapon Datajack Build | -11 -10 -10 -10 -9 -8 -7 ------- Run | Yrd Mat Min Exi Min Mat Fac Slots Evolved 6 | . . . . . 4 2 Power . | . . . . . . . Propulsion 1 | . . . . . . 1 Utility 5 | . . . . . 4 1 Weapon . | . . . . . . . Parts Attached 30 | 4 4 3 . . 2 17 Power 7 | 1 . 3 . . . 3 Engine 6 | 1 . 3 . . . 2 Core 1 | . . . . . . 1 Reactor . | . . . . . . . Propulsion 8 | 2 . . . . 1 5 Treads 7 | 2 . . . . 1 4 Leg . | . . . . . . . Wheel . | . . . . . . . Hover 1 | . . . . . . 1 Flight . | . . . . . . . Utility 10 | . 2 . . . 1 7 Device 4 | . . . . . 1 3 Storage 5 | . 2 . . . . 3 Processor . | . . . . . . . Hackware . | . . . . . . . Protection 1 | . . . . . . 1 Artifact . | . . . . . . . Weapon 5 | 1 2 . . . . 2 Energy Gun . | . . . . . . . Energy Cannon . | . . . . . . . Ballistic Gun 3 | 1 1 . . . . 1 Ballistic Cannon 1 | . . . . . . 1 Launcher . | . . . . . . . Special Weapon . | . . . . . . . Impact Weapon . | . . . . . . . Slashing Weapon . | . . . . . . . Piercing Weapon . | . . . . . . . Special Melee Weapon 1 | . 1 . . . . . Unidentified Prototypes 1 | . . . . . 1 . Parts Lost 12 | . . . . . . 12 Power 2 | . . . . . . 2 Propulsion 6 | . . . . . . 6 Utility 2 | . . . . . . 2 Weapon 2 | . . . . . . 2 Highest Loss Streak 6 | . . . . . . 6 To Critical Strikes . | . . . . . . . Average Slot Usage (%) 74 | . 91 100 100 100 54 51 Engine 8 | . 14 14 14 14 9 1 Core 1 | . . . . . . 3 Treads 22 | . 28 28 28 28 18 17 Device 3 | . . . . . 9 4 Storage 15 | . 22 28 28 28 . 6 Ballistic Gun 19 | . 15 28 28 28 18 11 Naked Turns 18 | . . . . . . 18 Heaviest Build 108 | 4 12 14 12 12 85 108 Greatest Support 60 | 40 40 40 40 40 40 60 Greatest Overweight (x) 4 | . . . . . 2 4 Average Overweight (x) . | . . . . . 1 . Largest Inventory Capacity 15 | 5 8 8 8 8 8 15 Average Capacity 7 | 5 7 8 8 8 5 9 Most Carried 14 | 4 5 8 8 8 8 14 Average Carried 4 | 2 3 6 7 8 3 3 Final Capacity 8 | 5 8 8 8 8 5 5 Final Carried 8 | 4 5 7 8 8 4 . Class Distribution -------------------- 100% | Mutant Dominant Class ---------------- Mutant | -10/Materials Mutant | -10/Mines Mutant | -10/Exiles Mutant | -9/Mines Mutant | -8/Materials Mutant | -7/Factory Resources | -11 -10 -10 -10 -9 -8 -7 ----------- Run | Yrd Mat Min Exi Min Mat Fac Matter Collected 632 | 218 46 141 . . 20 207 Remotely . | . . . . . . . Salvage Created 482 | . 33 28 . . . 421 Parts 28 | . 8 3 . . . 17 Haulers Intercepted . | . . . . . . . Recyclers Shooed . | . . . . . . . Parts Field Recycled . | . . . . . . . Retrieved Matter . | . . . . . . . Parts Self-Destructed . | . . . . . . . Prevented . | . . . . . . . Kills | -11 -10 -10 -10 -9 -8 -7 ------- Run | Yrd Mat Min Exi Min Mat Fac Combat Hostiles Destroyed 13 | . 2 2 . . . 9 Guns 10 | . 2 2 . . . 6 Cannons 3 | . . . . . . 3 Classes Destroyed 4 | . 1 . . . . 3 Swarmer 4 | . 2 2 . . . . Grunt 6 | . . . . . . 6 Duelist 1 | . . . . . . 1 Sentry 2 | . . . . . . 2 Best Kill Streak 3 | . 2 2 . . . 3 Combat Bots Only 3 | . 2 2 . . . 3 Max Kills in Single Turn 1 | . 1 1 . . . 1 Gunslinging . | . . . . . . . Exploded . | . . . . . . . Melee . | . . . . . . . Uniques/NPCs Destroyed . | . . . . . . . Combat | -11 -10 -10 -10 -9 -8 -7 -------- Run | Yrd Mat Min Exi Min Mat Fac Hostile Shots Fired 395 | . 13 11 . . 2 369 Missed 107 | . 3 4 . . . 100 Damage Taken 3535 | . 80 53 . . 62 3340 Core 718 | . 7 7 . . . 704 Absorbed by Shields . | . . . . . . . Core Remaining (%) 98 | 100 . . . 94 100 . Volleys Fired 90 | . 6 7 . . . 77 Largest 2 | . 1 2 . . . 2 Hottest 73 | . 20 40 . . . 73 Shots Fired 154 | . 6 14 . . . 134 Gun 135 | . 6 14 . . . 115 Cannon 19 | . . . . . . 19 Launcher . | . . . . . . . Special . | . . . . . . . Kinetic 154 | . 6 14 . . . 134 Thermal . | . . . . . . . Explosive . | . . . . . . . Electromagnetic . | . . . . . . . Robot Hit Streak 11 | . 2 2 . . . 11 Robot Miss Streak 4 | . 2 4 . . . 3 Penetration Max . | . . . . . . . Secondary Targets . | . . . . . . . Shots Hit Robots 86 | . 3 5 . . . 78 Core Hits 39 | . 2 3 . . . 34 Critical Kills . | . . . . . . . Critical Parts Destroyed . | . . . . . . . Critical Strikes 1 | . . . . . . 1 Blast 1 | . . . . . . 1 Melee Attacks . | . . . . . . . Impact . | . . . . . . . Slashing . | . . . . . . . Piercing . | . . . . . . . Sneak Attacks . | . . . . . . . Combat Hostiles . | . . . . . . . Follow-up Attacks . | . . . . . . . Damage Inflicted 983 | . 37 50 . . . 896 Guns 713 | . 37 50 . . . 626 Cannons 253 | . . . . . . 253 Explosions . | . . . . . . . Melee . | . . . . . . . Ramming 17 | . . . . . . 17 Kinetic 966 | . 37 50 . . . 879 Thermal . | . . . . . . . Explosive . | . . . . . . . Electromagnetic . | . . . . . . . Impact . | . . . . . . . Slashing . | . . . . . . . Piercing . | . . . . . . . Highest Corruption . | . . . . . . . Average Corruption . | . . . . . . . Corruption Purged . | . . . . . . . Corruption Blocked . | . . . . . . . Overload Shots . | . . . . . . . Overflow Damage . | . . . . . . . Projectiles . | . . . . . . . Explosions . | . . . . . . . Melee . | . . . . . . . Knockbacks 3 | . . . . . . 3 Impact . | . . . . . . . Kinetic 3 | . . . . . . 3 Secondary . | . . . . . . . Self-Inflicted Damage . | . . . . . . . Shots . | . . . . . . . Rammed 1 | . . . . . . 1 Targets Rammed 1 | . . . . . . 1 Kicked . | . . . . . . . Crushed . | . . . . . . . Highest Temperature 210 | . . . . . . 210 Average Temperature 48 | . . . . . . 48 Received Heat Transfer 1494 | . . . . . 24 1470 Siege Activations . | . . . . . . . Robots Corrupted . | . . . . . . . Combat Hostiles . | . . . . . . . Parts Fried . | . . . . . . . Impact Corruptions . | . . . . . . . Robots Melted . | . . . . . . . Combat Hostiles . | . . . . . . . Parts Melted . | . . . . . . . Heat Transferred . | . . . . . . . Parts Sabotaged . | . . . . . . . Parts Stolen . | . . . . . . . Parts Stripped . | . . . . . . . Power Chain Reactions . | . . . . . . . Alert | -11 -10 -10 -10 -9 -8 -7 ------- Run | Yrd Mat Min Exi Min Mat Fac Peak Influence 1309 | . 55 116 . 5 1309 1261 Initial 504 | . . 21 . . 1 504 Average 623 | . 25 70 . 4 490 1056 Maximum Alert Level 4 | . . . . . 4 4 Low Security (%) 39 | 100 100 100 . 100 40 . Level 1 . | . . . . . 2 . Level 2 11 | . . . . . 25 12 Level 3 19 | . . . . . 11 35 Level 4 29 | . . . . . 20 52 Level 5 . | . . . . . . . High Security . | . . . . . . . Max Security . | . . . . . . . Squads Dispatched 15 | . . 1 . . 6 8 Investigation . | . . . . . . . Extermination . | . . . . . . . Reinforcement 7 | . . . . . 5 2 Assault 5 | . . 1 . . 1 3 Garrison 3 | . . . . . . 3 Intercept . | . . . . . . . Searches Triggered . | . . . . . . . Construction Impeded 2 | . . . . . 1 1 Haulers Reinforced . | . . . . . . . Active Scanning Responses . | . . . . . . . Cargo Convoy Interrupts . | . . . . . . . Stealth | -11 -10 -10 -10 -9 -8 -7 --------- Run | Yrd Mat Min Exi Min Mat Fac Distress Signals 7 | . 1 . . . 4 2 Communications Jammed . | . . . . . . . Distress Signals . | . . . . . . . Times Spotted 60 | . 3 5 . . 17 35 Peak Tracking Total 7 | . 4 3 . . 3 7 Tactical Retreats 4 | . 1 . . . . 3 Traps | -11 -10 -10 -10 -9 -8 -7 ------- Run | Yrd Mat Min Exi Min Mat Fac Traps Triggered . | . . . . . . . Indirectly . | . . . . . . . Trap Hack Attempts . | . . . . . . . Triggered . | . . . . . . . Disarmed . | . . . . . . . Reprogrammed . | . . . . . . . Reused . | . . . . . . . Traps Extracted . | . . . . . . . Installed . | . . . . . . . Triggered . | . . . . . . . Machines | -11 -10 -10 -10 -9 -8 -7 ---------- Run | Yrd Mat Min Exi Min Mat Fac Machines Disabled 9 | . . . . . 1 8 Max in Single Turn . | . . . . . . . Garrison Access 1 | . . . . . . 1 Machines Repaired . | . . . . . . . Machines Dismantled . | . . . . . . . Machines Sabotaged . | . . . . . . . Overloaded Fab Kills . | . . . . . . . Hacking | -11 -10 -10 -10 -9 -8 -7 --------- Run | Yrd Mat Min Exi Min Mat Fac Machines Accessed 6 | . . . 3 1 1 1 Terminals 2 | . . . . 1 1 . Fabricators . | . . . . . . . Repair Stations . | . . . . . . . Recycling Units 1 | . . . . . . 1 Scanalyzers . | . . . . . . . Garrison Access . | . . . . . . . Total Hacks 30 | . . . 26 1 2 1 Successful 30 | . . . 26 1 2 1 Failed . | . . . . . . . Catastrophic . | . . . . . . . Database Lockouts . | . . . . . . . Manual 1 | . . . 1 . . . Terminals 3 | . . . . 1 2 . Fabricators . | . . . . . . . Repair Stations . | . . . . . . . Recycling Units 1 | . . . . . . 1 Scanalyzers . | . . . . . . . Garrison Access . | . . . . . . . Terminal Hacks 29 | . . . 26 1 2 . Record 28 | . . . 26 . 2 . Zone Layout 1 | . . . . 1 . . Fabricator Hacks . | . . . . . . . Repair Station Hacks . | . . . . . . . Recycling Unit Hacks 1 | . . . . . . 1 Report Inventory 1 | . . . . . . 1 Scanalyzer . | . . . . . . . Garrison Access Hacks . | . . . . . . . Unauthorized Hacks . | . . . . . . . Terminals . | . . . . . . . Fabricators . | . . . . . . . Repair Stations . | . . . . . . . Recycling Units . | . . . . . . . Scanalyzers . | . . . . . . . Garrison Access . | . . . . . . . Data Cores Recovered . | . . . . . . . Used . | . . . . . . . Hacking Detections 1 | . . . . . 1 . Full Trace Events . | . . . . . . . Feedback Events . | . . . . . . . Feedback Blocked . | . . . . . . . Robot Schematics Acquired . | . . . . . . . Robots Built . | . . . . . . . Authchips . | . . . . . . . Time . | . . . . . . . Total Robot Build Rating . | . . . . . . . Part Schematics Acquired . | . . . . . . . Parts Built . | . . . . . . . Authchips . | . . . . . . . Time . | . . . . . . . Total Part Build Rating . | . . . . . . . Parts Repaired . | . . . . . . . Time . | . . . . . . . Parts Recycled . | . . . . . . . Recycled Matter . | . . . . . . . Retrieved Matter . | . . . . . . . Retrieved Components . | . . . . . . . Parts Scanalyzed . | . . . . . . . Part Schematics Acquired . | . . . . . . . Parts Damaged . | . . . . . . . Bothacking | -11 -10 -10 -10 -9 -8 -7 ------------ Run | Yrd Mat Min Exi Min Mat Fac Used RIF Installer . | . . . . . . . Robots Hacked . | . . . . . . . Non-combat . | . . . . . . . Combat . | . . . . . . . Robot Hacks Applied . | . . . . . . . Relay Couplers Released 2 | . . . . . . 2 Machine Destruction 2 | . . . . . . 2 Fabnet Peak Effective % . | . . . . . . . Robots Rewired . | . . . . . . . Allies Hacked . | . . . . . . . Hacks Repelled . | . . . . . . . Allies | -11 -10 -10 -10 -9 -8 -7 -------- Run | Yrd Mat Min Exi Min Mat Fac Total Allies 1 | . . 1 . . . . Largest Group 1 | . . 1 1 1 1 . Highest-Rated Group 31 | . . 31 31 31 31 . Highest-Rated Ally 31 | . . 31 31 31 31 . Total Orders . | . . . . . . . Ally Attacks 279 | . . 10 . . 151 118 Total Damage 6162 | . . 106 . . 2517 3539 Kills 73 | . . 2 . . 39 32 Allies Corrupted 1 | . . . . . . 1 Allies Melted . | . . . . . . . Intel | -11 -10 -10 -10 -9 -8 -7 ------- Run | Yrd Mat Min Exi Min Mat Fac Robot Analysis Total . | . . . . . . . Derelict Logs Recovered 2 | . . . . 2 . . Drone Launches 31 | . . . . . 30 1 Drone Recoveries 1 | . . . . . . 1 Exploration | -11 -10 -10 -10 -9 -8 -7 ------------- Run | Yrd Mat Min Exi Min Mat Fac Turns Passed 2753 | 68 99 306 689 162 440 989 Spaces Moved 1305 | 43 47 175 427 102 136 375 Core 63 | 11 . . . . . 52 Treads 1240 | 32 47 175 427 102 136 321 Legs . | . . . . . . . Wheels . | . . . . . . . Hover 2 | . . . . . . 2 Flight . | . . . . . . . Fastest Speed 50 | 50 160 160 160 160 160 50 Average Speed 188 | 131 160 160 160 160 319 204 Slowest Speed 490 | 160 160 160 160 160 325 490 Overloaded Moves . | . . . . . . . Propulsion Burnouts . | . . . . . . . Robots Hopped . | . . . . . . . Cave-ins Triggered . | . . . . . . . Exploration Rate (%) 28 | 4 9 43 73 22 32 18 Regions Visited 6 Branch Regions 3 Pre-discovered Areas 1 | . . . . 1 . . Known Exits Taken . | . . . . . . . Unknown Exits Taken 6 | 1 1 1 1 1 1 . Scrap Searched 1 | . . 1 . . . . Spaces Dug . | . . . . . . . Terrain Destroyed 3 | . . . . . . 3 Melee . | . . . . . . . Projectile 3 | . . . . . . 3 AOE . | . . . . . . . Terrain Rammed . | . . . . . . . Walls Destroyed . | . . . . . . . Machines Disabled . | . . . . . . . Actions | -11 -10 -10 -10 -9 -8 -7 --------- Run | Yrd Mat Min Exi Min Mat Fac Total 1477 | 54 68 189 436 101 144 485 Wait . | . . . . . . . Move 1299 | 42 46 174 426 101 135 375 Hop . | . . . . . . . Pick Up 37 | 8 8 3 3 . 3 12 Fast Attach 2 | . . . . . 1 1 Attach 21 | 4 3 . . . . 14 Detach 2 | . . . . . . 2 Swap 7 | . 1 3 . . 1 2 Drop 18 | . 4 2 7 . 4 1 Fire 90 | . 6 7 . . . 77 Melee . | . . . . . . . Ram . | . . . . . . . Kick . | . . . . . . . Crush 1 | . . . . . . 1 Escape Stasis . | . . . . . . . Rewire . | . . . . . . . Trap . | . . . . . . . Miscellaneous . | . . . . . . . Route ------- -11/Scrapyard -10/Materials -10/Mines -10/Exiles (discovered 2 exits: *Min x2) -9/Mines -8/Materials -7/Factory History --------- Turn | Location | Event 4 | -11/Scrapyard | Discovered new exit (range 16) 69 | -11/Scrapyard | Entered Materials 69 | -10/Materials | Discovered new exit (range 15) 168 | -10/Materials | Entered Mines 169 | -10/Mines | Met a Derelict testing a Signal Generator 309 | -10/Mines | Build established: Mutant 467 | -10/Mines | Deemed a non-threat by the Exiles lab entrance 467 | -10/Mines | Discovered new exit (range 5) 474 | -10/Mines | Entered Exiles 474 | -10/Exiles | Accompanied by 1 ally 506 | -10/Exiles | Discovered new exit (range 14) 540 | -10/Exiles | Met 8R-AWN 567 | -10/Exiles | Met EX-HEX 644 | -10/Exiles | Met EX-DEC 759 | -10/Exiles | Discovered new exit (range 14) 870 | -10/Exiles | Met EX-BIN 902 | -10/Exiles | Aligned with FarCom system 903 | -10/Exiles | Given EX-Vault access code 953 | -10/Exiles | Opened EX-Vault 973 | -10/Exiles | Found Prototype Device 1036 | -10/Exiles | Warned to stay clear of 0b10 Research branches 1163 | -10/Exiles | Left Exiles lab with Army-in-a-Box 1163 | -10/Exiles | Entered Mines 1163 | -9/Mines | Accompanied by 1 ally 1231 | -9/Mines | Learned Materials stockpile data 1275 | -9/Mines | Learned location of Zion (-7) 1314 | -9/Mines | Discovered new exit (range 8) 1325 | -9/Mines | Entered Materials 1325 | -8/Materials | Accompanied by 1 ally 1325 | -8/Materials | Evolved 4 slots: Utility x4 1329 | -8/Materials | Identified Army-in-a-Box 1651 | -8/Materials | Lost 3 allies 1696 | -8/Materials | Discovered new exit (range 17) 1706 | -8/Materials | Lost 8 allies 1725 | -8/Materials | First assault squad dispatched 1765 | -8/Materials | Entered Factory 1765 | -7/Factory | Accompanied by 18 allies 1765 | -7/Factory | Evolved 2 slots: Propulsion x1, Utility x1 2161 | -7/Factory | Lost 3 allies 2165 | -7/Factory | First assault squad dispatched 2271 | -7/Factory | Lost 8 allies 2330 | -7/Factory | Garrison activated, responded to threat 2475 | -7/Factory | Core integrity fell below 50% 2521 | -7/Factory | Lost 6 parts (1p2n2u1w) 2549 | -7/Factory | Core integrity fell below 20% 2754 | -7/Factory | Destroyed by G-50 Soldier with Heavy Laser Last Messages --------------- R-06 Scavenger collects Imp. Heat Sink. Acquired 6 matter. Acquired 47 matter. Acquired 2 matter. G-47 Trooper Aluminum Leg blasted off. G-47 Trooper knocked back. G-47 Trooper destroyed. U-05 Engineer builds a Wall. K-01 Serf collects debris. Acquired 28 matter. Acquired 3 matter. U-05 Engineer builds a Wall. K-01 Serf collects debris. Acquired 4 matter. Acquired 32 matter. K-01 Serf collects debris. G-50 Soldier unfolds itself. G-47 Trooper unfolds itself. I-36 Angel unfolds itself. Lgt. Treads destroyed. Map ----- +----------------------------------------------------+ | ?????????????????????????????????????????????????? | | ?????????????????????????????????????????????????? | | ?????????????????????????????????????????????????? | | ?????????????????????????????????????????????????? | | ?????????????????????????????????????????????????? | | ?????????????????????????????????????????????????? | | ?????????????????????????????????????????????????? | | ?????????????????????????????????????????????????? | | ?????????????????????????????????????????????????? | | ?????????????????????????????????????????????????? | | ?????????????????????????###?????????????????????? | | ????????????????????????? ???????????????????? | | ??????????????????? ? "???????????????????? | | ??????????????????# # "???????????????????? | | ??????????????????# # "???????????????????? | | ??????????????????# # ""??????????????????? | | ?????????????###### # """?????????????????? | | ?????????????? # """"????????????????? | | ??????????????? # """"????????????????? | | ??????? ?????? g ????????????????? | | ????? ??????? # """"????????????????? | | ????# ???????? #[ """"????????????????? | | ????# ????????# g# """"????????????????? | | ????# ????????# # """"????????????????? | | ????# ????????# # """"#???????????????? | | ????# ????????# #@ """"#???????????????? | | ????# #???????# # i """"#???????????????? | | ????# #???????# #gg #???????????????? | | ????# #???????# ; g #???????????????? | | ????# #???#####+#/##;#########???????????????? | | ??# #???# #???????????????????? | | # #???# #???????????????????? | | / ##### #???????????????????? | | ????# "%/ #???????????????????? | | ????# ##### #???????????????????? | | ????# #???# #???????????????????? | | ##### ####################???????????????????? | | ! # # #?????????????????????????????? | | # # #?????????????????????????????? | | """ + + #?????????????????????????????? | | """ # # #?????????????????????????????? | | """ # # #?????????????????????????????? | | # # #?????????????????????????????? | | # # #?????????????????????????????? | | # # #?????????????????????????????? | | ##+## + #?????????????????????????????? | | ?# ##########?????????????????????????????? | | ## #??????????????????????????????????????? | | ## #??????????????????????????????????????? | | #??????????????????????????????????????? | +----------------------------------------------------+ Best States ------------- Heat Dissipation 34 Energy Generation 16 Energy Capacity 540 Matter Stores 375 Matter Capacity 400 Sight Range 16 Terrain Scan Density 10 Armor Coverage 225 Evasion (%) 50 Recoil Reduction 3 Item Schematics ----------------- None Robot Schematics ------------------ None Fabricated ------------ Nothing Alien Tech Used ----------------- None Achievements -------------- Crack Shot Librarian Release The Drones! Serviceable Loadout Significant Disruption Troublemaker Challenges ------------ None Game ------ Seed StormStasisBrace Manual? 0 Play Time 00:37:20 Cumulative 2.1 hours Start 2024.04.06 @ 02:06:34 End 2024.04.06 @ 02:43:19 Sessions 1 Manual Loads 0 Difficulty Rogue Special Mode None Game No. 4 Rogue 4 Adventurer 0 Explorer 0 Win Type - Total 0 Types 0/0/0/0/0/0/0/0/0 Lore% 10 Gallery% 5 Achievement% 9 Wizard Run 0 Options --------- Layout 1 ASCII 0 Keyboard 0 Movement Arrows Keybinds 0 Fullscreen 1 Font 24/Smallcaps Map View 50x35 Zoom Use 0% Tactical HUD 0 Map Filters NONE Filters NONE Steam 1 RUN: 88ccd4b0-811b-4aa9-9baf-86745358bb8f